{"text_format":"1","workbook":"xlsx","n_sheets":2,"sheets":["DICAS","BASE DICAS"],"not_rendered":{"charts":0,"images":1,"macros":1,"external_links":1,"defined_names":9,"comments":0,"pivot_tables":0},"unopened":[],"bounds":{"document_bytes":16777216,"sheet_cells":100000,"rows_first":2000,"rows_last":500,"rows_between":2000,"halvings":0,"cell_chars":16384,"cell_head_chars":4096},"cells_cut":0,"cells_raw":0,"read":"whole","date_system":"1900"}

{"sheet":"DICAS","index":0,"n_rows":28,"n_cols":4,"rows_kept":28,"cut":false,"hidden":false,"merged":[]}
[]
[null,null,null,"Clique aqui para                                         ou use a tecla <F9>"]
[]
[]
[null,null,null,"PARA MEMORIZAR, EXPERIMENTE APLICAR ESTA DICA..."]
[null,{"$f":"$B$27","v":26},{"$f":"VLOOKUP($B6,BaseDicas,2,0)","v":"LINHAS E COLUNAS"},{"$f":"VLOOKUP($B6,BaseDicas,3,0)","v":"Você pode querer ocultar linhas de uma planilha  .  Para  tanto use o menu Inicio > Formatar > Visibilidade > Ocultar., ou o botão direito do mouse no cabeçalho das linhas desejadas.  O mesmo vale para as colunas."}]
[]
[null,{"$f":"$B$28","v":64},{"$f":"VLOOKUP($B8,BaseDicas,2,0)","v":"FORMATAÇÃO"},{"$f":"VLOOKUP($B8,BaseDicas,3,0)","v":"Uma maneira muito prática e  rápida de formatar uma lista de dados é usar o menu Inserir > Tabelas escolhendo uma das diversas sugestões apresentadas.  Ao fazer isto, surge uma guia de Ferramentas de Design de tabelas.  Experimente...."}]
[]
[null,null,null,"MUITO IMPORTANTE!"]
[null,null,"Ult Atualização","Este arquivo terá atualizações e ampliações constantes, com mais dicas a cada vez."]
[null,null,"2016-08-07","Portanto, solicite sempre  sua versão através de nosso email excelexpert@excelexpert.com.br"]
[]
[]
[]
[]
[]
[]
[]
[]
[]
[]
[]
[]
[{"$f":"ROUND(RAND()*METADE,0)","v":26},{"$f":"METADE","v":66}]
[{"$f":"ROUND(RAND()*TOTAL,0)","v":64},{"$f":"TOTAL","v":131}]
[{"$f":"IF(A25>B25,B25,IF(A25=0,1,A25))","v":26},{"$f":"IF(A27>A28,A27-A28,A27)","v":26}]
[{"$f":"IF(A26>B26,B26,IF(A26=0,1,A26))","v":64},{"$f":"IF(A28=B27,A28+1,A28)","v":64}]

{"sheet":"BASE DICAS","index":1,"n_rows":132,"n_cols":9,"rows_kept":132,"cut":false,"hidden":false,"merged":[]}
["#","TEMA","TEXTO DA DICA","LEN","ASSUNTO","OLD","REP",{"$f":"COUNTA('BASE DICAS'!B:B)-1","v":131},{"$f":"ROUND(H1/2,0)","v":66}]
[1,"LISTAS AUTOMATICAS","Além das listas de meses e dias da semana em português, já cadastradas no Excel, você pode criar uma lista do seu interesse e cadastrá-la também.  Para tanto, digite a lista num intervalo de células, selecione-a. Va até as opções do Excel , guias Mais usados e ative o botão Editar Listas Personalizadas. Na caixa de diálogo, usar o botão Importar  e pronto...",{"$f":"LEN(C2)","v":360},"Criar listas personalizadas","OLD"]
[2,"RECURSOS ESPECIAIS","Você pode ver a sua fórmula ser executada passo a passo! Isto é ótimo principalmente para depurar algum erro de resultado.   Selecione a célula com a fórmula e use o caminho  Formulas> Auditoria de fórmulas > Avaliar Fórmula. Na caixa de diálogo, use o botão Avaliar e veja o que acontece...",291,"auditoria de formulas","OLD"]
[3,"FORMATAÇÃO","Você pode formatar o CNPJ usando a seguinte máscara : ( copie e cole no formato personalizado)   00\".\"000\".\"000\"/\"0000-00.  O segredo é que os caracteres ponto e barra, por serem especiais, tem de vir entre aspas...",215,"formatação cnpj","OLD"]
[4,"RECURSOS ESPECIAIS","Para ter a data atual numa célula da planilha, use a função =HOJE(), escrita desta forma,   com sinal de igual e parênteses.\nFormate a célula com seu formato de data preferido",175,"função hoje","OLD"]
[5,"SEGURANÇA","Uma boa senha tem de ter de 6 a 8 caracteres alfanuméricos.  Como fazer uma senha forte e fácil de lembrar? Se possível, use somente uma senha para tudo; e use uma palavra ou nome em que você consiga trocar  algumas letras por alguns números parecidos.   E não se esqueça de inserir algum caracter especial:Exemplo: de Thiago para #Th1ag0123",341,"criação de senha","OLD"]
[6,"FUNÇÕES","Uma hora no Excel é um número decimal,  sendo que 1 seria = 24 horas.  Assim, 12 horas = 0,5,   6 horas = 0,25  e  18 horas = 0,75.  \nIsto nos permite fazer qualquer cálculo com horas, pois estaremos na verdade calculando com números decimais.  Simples e prático...",265,"data e hora: tratamento ","OLD"]
[7,"LINHAS E COLUNAS","Você pode querer ocultar colunas de uma planilha  .  Para  tanto use o menu Inicio > Formatar > Visibilidade > Ocultar. De forma mais rápida e fácil, use o botão direito do mouse no cabeçalho das linhas desejadas.  \nO mesmo vale para as linhas",243,"ocultar linhas e colunas","OLD"]
[8,"RECURSOS ESPECIAIS","Você pode realizar uma alteração num grupo de planilhas.  Para tanto, selecione as guias desejadas ( usando SHIFT ou CTRL, cfe o caso) e execute a operação desejada.  O Excel fará a mesma operação em todas as planilhas: isto pode ser ótimo mas também pode ser um desastre...  ",276,"Trabalhando em grupos de planilhas","OLD"]
[9,"FORMATAÇÃO","Você pode formatar uma célula conforme seu conteudo.  Para tanto, selecione as células desejadas e use o menu Inicio > Formatação Condicional.  Abre-se um menu com as mais diversas opções de formatação. Escolha a que lhe for mais conveniente... ( teremos mais dicas a respeito)",277,"formatação condicional","OLD"]
[10,"RECURSOS ESPECIAIS","A auto correção substitui algumas palavras erradas por certas.  Mas as vezes isto é indesejável.  Neste caso, vá ao botão Office, selecione o botão Opções do Excel e em seguida,  a guia Revisão de Texto.  Acione o botão Opções de Atuo correção e finalmente,desabilite a opção para substituir palavras.",301,"auto correção de textos","OLD"]
[11,"FUNÇÕES","Para substituir caracteres de um texto por outro, use o comando Inicio > Localizar e Substituir > Substituir . Ou simplesmente CTRL + U.  Na caixa de dialógo indique os caracteres originais e o caracteres de substituição.  \nPara delimitar esta ação, é muito importante selecionar as células antes, pois senão ele será executado em toda a planilha...",349,"localizar e substituir","OLD"]
[12,"SEGURANÇA","O comando Proteger Pasta de Trabalho do menu Revisão, grupo Alterações,  apenas impede que o usuario inclua, exclua ou renomeie as planihas do arquivo. O que pode ser uma boa opção de segurança...",196,"proteger pasta de trabalho","OLD"]
[13,"FUNÇÕES","Para inserir uma função - sempre em uma célula vazia - use o comando Fórmulas > Inserir Função fx   ou o botão fx que fica ao lado da barra de fórmulas.   Isto vai lhe trazer uma janela com todas as funções disponiveis no Excel para sua escolha.",245,"inserir função","OLD"]
[14,"SÉRIES DE DATAS","Para preencher uma coluna ( ou uma linha ) com uma série de datas - por exemplo de 1 a 30 de um mes -  digite a primeira data e use o comando Inicio> Edição > Preencher  > Série.  Fique atento ao selecionar as opções e não se esqueça de indicar o limite ( no caso o dia 30 do mes...)",283,"series de datas","OLD"]
[15,"FUNÇÕES","As funções mais usuais do Excel, alem da Soma são as funções Média, Minimo e Máximo.  Elas se encontram ao lado do botão da AutoSoma.",133,"funções mais usadas","OLD"]
[16,"IMPRESSÃO","Você pode determinar a área de impressão da planilha, somente com a parte  que você deseja impirmir da mesma.  Selecione a área  desejada e use o comando Layout da Página > Configurar Pagina >Área de Impressão > Definir área de impressão.  ",240,"area de impressão","OLD"]
[17,"EXCEL 2007 A 2016","Algo muito importante que pouca gente sabe: atyé a versão 2003 uma planilha Excel tinha um total de  256 colunas e 65.536 linhas. A partir da versão 2007 e seguintes, estes números cresceram para :  16.384 colunas por 1.048.576 linhas.  E um arquivo pode ter 256 planilhas ou mais...  É coisa, não?!",299,"limites do excel","OLD"]
[18,"FÓRMULAS","Para iniciar uma fórmula, basta digitar o sinal de = numa célula; em seguida clicar nas células que fazem parte da operação, e  digitar os símbolos das operações: soma, subtração, divisão ou multiplicação.  ( + - / *).  \nExperimente: é muito mais simples do que parece.",269,"formulas basicas","OLD"]
[19,"INTERFACE","O botão direito do mouse é um excelente recurso também no Excel.  Experimente e veja os diferentes menus que surgem conforme se clica no cabeçalho da coluna, ou da linha, ou numa célula, ou na área das barras de ferramentas.",224,"botão direito do mouse","OLD"]
[20,"FUNDAMENTOS","<CTRL+C> seguido de <CTRL+V> continua sendo a dupla de comandos mais popular de todos os tempos e servem para copiar e colar células ou blocos ( intervalos) inteiros.  Note que os formatos também são copiados neste caso.",220,"copiar e colar ","OLD"]
[21,"LISTA DE DADOS","Conceito essencial no Excel : uma lista de dados tem uma e somente uma linha de títulos e não pode ter linhas nem colunas totalmente vazias, pois linhas e colunas vazias delimitam o fim da lista.",195,"lista de dados: conceito","OLD"]
[22,"VINCULAÇÃO","Uma fórmula de uma planilha pode apontar células de outras planilhas.  Isto é chamado de vinculação.  Pode apontar inclusive para células em outro arquivo Excel.  Entretanto, isto tem vantagens e desvantagens....  Eu pessoalmente evito vínculos entre arquivos.  Entretanto, uso e abuso de vínculos dentro do mesmo arquivo...",324,"vinculação entre planilhas","OLD"]
[23,"SÉRIES DE DATAS","Numa célula, digite a primeira data e use o comando Inicio> Edição > Preencher  > Série. .  Veja as opções:  série de dias corridos, série de dias úteis série de meses.  Basta optar por uma delas e digitar  o limite final com dia/mes/ano.  A série será criada em linha ou coluna, conforme sua opção.",299,"preencher serie de datas[","OLD"]
[24,"RECURSOS ESPECIAIS","Quer copiar uma planilha inteira para uma novo arquivo do Excel? Fácil: clique com o botão direito na guia ( aba ) da planilha e escolha o comando Mover ou Copiar.  Leia atentamente e escolha as opções adequadas.  Não se esqueça de salvar o novo arquivo...",256,"exportar planilha","OLD"]
[25,"RECURSOS ESPECIAIS","Para repetir o mesmo dado em varias células de uma mesma coluna, basta selecionar a célula de origem e as células de destino e usar o atalho de teclado <CTRL + D>.  É muito rápido e fácil...",190,"atalho ctrl+d","OLD"]
[26,"LINHAS E COLUNAS","Você pode querer ocultar linhas de uma planilha  .  Para  tanto use o menu Inicio > Formatar > Visibilidade > Ocultar., ou o botão direito do mouse no cabeçalho das linhas desejadas.  O mesmo vale para as colunas.",213,"ocultar linhas e colunas","OLD"]
[27,"FUNDAMENTOS","Você sabia que o cursor do mouse no Excel muda de formato e de função, conforme o local onde ele toca? Assim, na borda de uma célula ele se transforma numa seta que lhe permite mover ou copiar ( com <CTRL>) esta célula para outro local, usando o arraste do mouse.",263,"formatos do cursor","OLD"]
[28,"RECURSOS ESPECIAIS","Ao copiar fórmulas, os endereços das células se ajustam automáticamente.   Entretanto, em algumas situações, você precisa fixar um endereço, para que ele não se altere.  Neste caso, use a tecla <F4> para fixar a coluna, ou a linha ou ambos os componentes da referência a célula.",278,"referencias absolutas","OLD"]
[29,"MODELOS DE PLANILHAS ","Muita gente não sabe que o Excel tem vários modelos de planilhas prontos para usar.  Não só internamente, mas na Internet!  Visite , pois vale a pena.  Como chegar lá? Usando o botão Office ( canto superior esquerdo da tela) e opção  Novo. Abre-se um painel com diversas opções de modelos!",289,"modelos prontos de planilhas","OLD"]
[30,"FUNÇÕES","Como você já deve ter notado, as funções do Excel são tantas que foram separadas em categorias.    Temos funções Matemáticas, Estatísticas, Lógicas, Texto, Data e Hora, etc... No Excel 2007 esta procura ficou muito mais fácil, pois na guia Formulas, você tem botões especificos para listar estas funções. Basta clicar na seta existente em cada botão.",350,"categorias de funções","OLD"]
[31,"SEGURANÇA","Você sabia que pode ocultar uma planilha? Isto é importante quando a mesma é usada internamente, sem interesse para o usuário final.  Basta usar o menu Inicio > Formatar > Visibilidade > Ocultar e Reexibir > Ocultar planilhas.    Para reexibi-la, siga o mesmo caminho. Ou se preferir, use o botão direito do mouse diretamente na guia da planilha.",346,"ocultar planilhas","OLD"]
[32,"FUNÇÕES","Para converter textos em maiusculas ou minusculas, no Excel, você tem de usar 2 colunas: a original e a convertida.  Na convertida, use as funções de texto desejadas: maiusculas, minusculas, primeirar maiuscula.  Feito isto, copie e cole valores para eliminar as funções e ficar só com o resultado.",298,"conversão de textos maiusc/minusc","OLD"]
[33,"FORMATAÇÃO","O Excel permite formatar o CEP de 8 digitos, facilmente.  Para tanto digite somente os números do CEP e use o caminho Formatar > Celulas > Especiais > CEP com 8",{"$f":"LEN(C34)","v":160},"formatação CEP","OLD"]
[34,"FORMATAÇÃO","Há uma diferença entre os formatos Moeda e Contábil.  O formato Contábil mantém o simbolo da moeda alinhado a esquerda, enquanto o formato Moeda mantém este simbolo próximo ao primeiro dígito do número.  \nTambém são diferentes para valores zerados.  Experimente...",264,"formatos moeda e contabil","OLD"]
[35,"LINHAS E COLUNAS","Excluir  linhas ou colunas  numa planilha é muito simples.  Mas antes de excluir uma linha ou coluna certifique-se que nenhuma fórmula usa aqueles dados.  Use o botão direito do mouse no número da linha ou na letra da coluna e escolha o comando Excluir",252,"excluir linhas e colunas","OLD"]
[36,"SEGURANÇA","Para proteger uma planilha parcialmente, permitindo digitação em algumas células, elimine o bloqueio padrão de proteção das mesmas.   Para tanto, use o menu Formatar > Celulas, guia Proteção.  Somente depois execute o comando Revisão> Alterações > Proteger planilha.",266,"proteção parcial de planilhas","OLD"]
[37,"FUNDAMENTOS","Uma célula no Excel tem, além do conteúdo, um formato.  Ou seja, se você formatou uma célula, ao deletar seu conteúdo, o formato não é deletado.  Para eliminar o formato de uma célula use o comando Inicio >Edição > botão Limpar  Formatos.",238,"conteudo e formato","OLD"]
[38,"GRÁFICO PADRÃO","Para gerar um gráfico rápidamente no Excel, basta selecionar os dados de origem ( sem esquecer os titulos das colunas) e usar a tecla <F11>. Este Gráfico será automáticamente posicionado em uma nova guia na pasta de trabalho.",225,"grafico padrao com f11","OLD"]
[39,"TABELAS DINAMICAS","Criada a tabela dinâmica, um simples clique no botão Grafico Dinâmico ( na guia Design da Tabela Dinâmica) gera um gráfico baseado na mesma.",140,"design de tabela dinamica","OLD"]
[40,"FORMATAÇÃO","A formatação de números de telefones no Excel está um tanto desatualizada...  Para corrigir este problema, formate o número de telefone pelo caminho normal ( Inicio > Formatar> Formatar Celulas> Especiais> Telefone.).  Em seguida, escolha a formatação personalizada e acrescente mais um 9 e mais um # na máscara, para ter telefones de 8 digitos com ou sem DDD.",360,"formatos telefones","OLD","***"]
[41,"FUNÇÕES","Entre as funções lógicas do Excel, a função SE é  a mais utilizada.\nO conceito é simples:  você define uma condição ( teste lógico).\nSe a condição for atendida, será executado o comando colocado no Verdadeiro (SIM).  Senão, será executado o comando colocado no Falso (NÃO).  ",275,"função SE","OLD"]
[42,"IMPORTAÇÃO DE DADOS","Um excelente recurso do Excel é a importação de dados a partir de arquivos no formato txt ou csv.  Estes formatos são facilmente gerados pelos mais diversos softwares e isto nos permite trazer grandes volumes de dados para o Excel sem digitar!  Use o menu Dados > Obter Dados Externos > De Texto. Abre-se um assistente de importação de  dados. Siga as instruções com atenção..",376,"importar txt ou csv","OLD"]
[43,"DIGITAÇÃO","Durante a digitação, você pode desistir de finalizar uma célula, simplesmente teclando o <ESC> ao invés do Enter.  Agora, se você se arrependeu do que fez, use o <CTRL+Z> que é o mesmo que Desfazer..   Isto ajuda, não?",218,"digitação: esc e ctrl+z","OLD"]
[44,"FUNÇÕES","Você pode localizar um determinado caracter dentro de um texto.  A função Localizar vai lhe trazer a posição ( número ) do caracter dentro do texto.  Assim você pode determinar por exemplo que você quer todo o texto a esquerda ou a direita daquele caracter...",259,"função localizar","OLD"]
[45,"RECURSOS ESPECIAIS","Para ter a o horário  atual numa célula da planilha, use a função =AGORA(), escrita assim com sinal de igual e parênteses.Formate a célula com seu formato de horas  preferido.  Este horário será atualizado sempre que você abrir o arquivo ou quando a planilha for calculada .",274,"função agora","OLD"]
[46,"FUNDAMENTOS","Para limpar totalmente uma célula, ou seja, para remover o conteúdo e todos os formatos ( número, borda, padrão, etc) use o comando Inicio >Edição > botão Limpar Tudo.  Esta ação retorna a célula ao seu estado original, como se nunca tivesse sido usada...",255,"limpar tudo","OLD"]
[47,"FUNÇÕES","Uma data no Excel é um número serial contado de 1 em 1 a partir de 1/1/1900.  Assim qualquer data é na verdade um número.  \nO dia 1/1/2000 por exemplo, seria o número 36.526.  Faz sentido, não? 100 anos de 365 dias, mais 26 dias em anos bissextos.  \nComo ver isto? Basta usar o formato geral na célula contendo uma data...",322,"tratamento interno de datas","OLD"]
[48,"RECURSOS ESPECIAIS","Ao digitar textos numa coluna, o Excel sempre tenta a auto-conclusão, ou seja, tenta usar o mesmo texto já digitado anteriormente.  Se a escolha for correta, basta teclar Enter; senão, basta continuar digitando.",211,"atuto conclusão","OLD"]
[49,"NAVEGAÇÃO","Para chegar rápidamente ao fim de uma lista de dados, use a tecla END seguida da tecla de seta na direção desejada, ou seja, para a direita ou para baixo.  Usando este movimento em conjunto com a tecla <SHIFT> lhe permite selecionar rápidamente toda a lista de dados.",267,"navegação rápida","OLD"]
[50,"TABELAS DINAMICAS","Uma tabela dinâmica gera um conjunto de subtotais organizados de uma lista de dados .  Pode-se, por exemplo, cruzar os dados de vendas entre Produtos versus Clientes.  É um excelente mecanismo de análise de dados.",213,"tabela dinamica","OLD"]
[51,"SEGURANÇA","Para proteger uma planilha totalmente contra digitação, use o menu Revisão > Alterações > Proteger Planilha.  O uso de senha é opcional.",136,"proteção parcial de planilhas","OLD"]
[52,"EXCEL 2007 A 2016","Para facilitar a adaptação com o Excel 2007, você pode personalizar a barra de acesso rápido colocando ali os botões que você mais usava nas versões anteriores",159,"excel 2007 - adaptação","OLD","***"]
[53,"FÓRMULAS","No menu Fórmulas > Auditoria de fórmulas, você pode identificar facilmente o motivo de um determinado erro.  Basta clicar na célula com mensagem de erro e usar o botão Verificação de Erros.",189,"rastreamento de erros","OLD"]
[54,"RECURSOS ESPECIAIS","Você já deve ter notado que o Excel possui internamente uma lista de nomes de meses e de dias de semana.  Ao escrever, por exemplo, domingo numa célula e preencher ( com o cursor no canto inferior direito), o Excel escreve os demais dias da semana.",248,"listas personalizadas","OLD"]
[55,"SEGURANÇA","Para proteger um arquivo Excel contra acessos indesejados, você pode salvar o arquivo com senha de proteção.     Para tanto, use o botão Office,  Arquivo > Salvar Como.  Na janela de Salvar como, acione o botão Ferramentas e escolha Opções Gerais.  Cadastre e confirme a senha de proteção que será solicitada ao abrir o arquivo.",328,"proteção de arquivos abertura/salvamento","OLD"]
[56,"TABELAS DINAMICAS","O Excel tem vários modelos de formatação automática de uma tabela dinâmica.  Use uma das diversas opções disponiveis na guia Design da guia Ferramentas para Tabela Dinâmica para acessar este recurso.  Note que há dezenas de opções com uma estética espetacular...",262,"design de tabela dinamica","OLD"]
[57,"FÓRMULAS","Para usar os nomes de células numa função, basta digitá-lo no lugar da referência de célula.  Para usar nomes em fórmulas já existentes, na guia Fórmulas, ao lado do botão Definir Nome, escolha Aplicar Nomes.  Para alterar nomes use  o botão Gerenciador de nomes na mesma guia Fórmulas.",286,"usando nomes em funções","OLD"]
[58,"LISTAS AUTOMATICAS","O Excel possui internamente uma lista de meses do ano e dias da semana, tanto abreviados quanto por extenso.  Basta digitar o nome de um mes ou dia qualquer e arrastar pelo canto da célula para gerar a lista.  (coluna ou linha)",227,"listas personalizadas","OLD"]
[59,"FUNÇÕES","Você quer saber quantos caracteres tem um texto? Simples...  Use a função Num.Caract e aponte para o texto.  ",109,"funções de texto;num caracteres","OLD"]
[60,"FUNÇÕES","Esta é uma regra muito importante: toda e qualquer função do Excel pode ser usada dentro de outra função do Excel.  \nIsto nos permite combinar diversas funções numa fórmula só!.  \nUm Exemplo? Arrendondar a Média das Somas ( usa 3 funções..)",240,"combinação de funções","OLD"]
[61,"FÓRMULAS","Para saber se uma determinada célula é referenciada por alguma fórmula, basta selecioná-la e usar o comando Rastrear Dependentes, disponível no  menu Fórmulas, grupo Auditoria de Fórmulas.  Isto lhe permite as vezes deletar uma célula com segurança, sem prejudicar fórmulas na sua planilha...",292,"auditoria de formulas:dependentes","OLD"]
[62,"INTERFACE","Para colocar ou retirar as linha de grade da planilha ( não confundir com bordas) você pode usar o menu Exibição, grupo Mostrar/Ocultar ou o menu Layout da Página > Linhas de Grade > Exibir.\nHabilite ou desabilite a opção Linhas de Grade, conforme sua opção.",258,"eliminar linhas de grade","OLD"]
[63,"IMPRESSÃO","Esta pouca gente sabe: quando você quiser repetir a linha de títulos da sua lista de dados  em todas as páginas de impressão, basta usar o comando Imprimir Títulos, que aparece no grupo Configurar Página, no menu Layout da Página.  Use a opção Linhas a  Repetir na Parte Superior e selecione as linhas desejadas...",314,"repetir linhas de titulos na impressão","OLD"]
[64,"FORMATAÇÃO","Uma maneira muito prática e  rápida de formatar uma lista de dados é usar o menu Inserir > Tabelas escolhendo uma das diversas sugestões apresentadas.  Ao fazer isto, surge uma guia de Ferramentas de Design de tabelas.  Experimente....",235,"Uso do recurso tabela para formatar listas","OLD"]
[65,"NAVEGAÇÃO","Uma das melhores formas de navegar no Excel é usar a tecla <F5> e digitar o endereço da célula desejada.  Na caixa de diálogo aparecem os últimos endereços utilizados, permitindo revisitá-los...",{"$f":"LEN(C66)","v":194},"navegação rápida - f5","OLD"]
[66,"FÓRMULAS","Você pode dar  nome a uma célula ou a intervalos de células no Excel.  Isto é muito útil para facilitar o preparo de fórmulas ou funções usando estas células.  O jeito mais rápido de fazer isto: selecione as células e digite o nome na caixa de nome ( célula a esquerda da barra de fórmulas) e tecle Enter ao terminar.",317,"nomear celulas e intervalos","OLD"]
[67,"LINHAS E COLUNAS","Você pode querer reexibir as  linhas ou colunas ocultas de uma planilha.  Selecione toda a planilha, clicando no botão superior esquerdo.  Em seguida, use o menu Inicio > Formatar > Visibilidade > Ocultar e Reexibir.  ",218,"ocultar linhas e colunas","OLD"]
[68,"IMPORTAÇÃO DE DADOS","Ao importar dados, veja se eles são delimitados ou de largura fixa.  Nos dados delimitados, o Excel identifica um delimitador já existente no arquivo.  Se não houver, você deve determinar (com um clique na régua) a largura de  cada coluna antes de importar o arquivo.  Experimente, é muito simples...",300,"importar txt ou csv","OLD"]
[69,"IMPORTAÇÃO DE DADOS","Se você tem uma tabela no Word, para trazê-la para o Excel, é muito simples! Basta copiar e colar....  ( mantendo as janelas abertas em paralelo...) \nÉ muito fácil e extremamente útil, concorda?",194,"tabelas word p/ excel","OLD"]
[70,"RECURSOS ESPECIAIS","Um recurso que ganha muito tempo ao repetir fórmulas numa coluna é clicar no canto inferior direito da célula a ser repetida.  Em seguida, ao invés de arrastá-la para baixo, experimente dar um duplo clique ali mesmo!  Com um detalhe: só funciona se a coluna à esquerda estiver preenchida...",290,"duplo clique p/repetir formulas","OLD"]
[71,"NAVEGAÇÃO","O uso do teclado na navegação do Excel é muito  eficaz e mais rápido.  Assim, para voltar ao inicio da planilha experimente <CTRL + HOME>.  \nPara ir ao fim da planilha, experimente <CTRL + END>.",194,"ctrl home ectrl end","OLD"]
[72,"MODELOS DE PLANILHAS ","Para transformar uma planilha em um modelo, basta usar o comando Salvar Como e escolher Modelo na lista de tipos de arquivos.  O Excel vai salvar este arquivo numa pasta especial e com a extensão .xltm.  Daí pra frente, basta usar o menu Arquivo > Novo para criar uma novo arquivo baseado neste modelo.",302,"salvar como modelo","OLD"]
[73,"LISTA DE DADOS","Para selecionar toda a lista de dados de uma só vez, basta usar  o teclado.\nA combinação é <CTRL + Asterisco>  . .Não é mesmo muito fácil??  Existe ainda um botão de comando que faz isto.... Mas isto é outra história...",219,"selecionar lista de dados","OLD"]
[74,"RECURSOS ESPECIAIS","Assim como você pode repetir o valor ou a fórmula de uma célula para várias células abaixo, usando o <CTRL+D> ( down), você pode fazer o mesmo para a direita, usando a combinação <CTRL +R> ( right).  ",200,"ctrl d e ctrl r","OLD"]
[75,"FÓRMULAS","Executar  fórmulas passo a passo pode ser um recurso muito interessante, principalmente quando se quer depurar uma fórmula.  Use o botão Avaliar fórmulas  disponível no grupo Auditoria de fórmulas do menu Fórmulas.",214,"auditoria de formulas: avaliar","OLD"]
[76,"FÓRMULAS","Ao copiar fórmulas, os endereços das células se ajustam automáticamente.   Entretanto, em algumas situações, você precisa fixar um endereço, para que ele não se altere.  Neste caso, use a tecla <F4> para fixar a coluna, ou a linha ou ambos os componentes da referência a célula.",278,"referencias absolutas","OLD"]
[77,"RECURSOS ESPECIAIS","Um recurso excelente do Colar Especial é a opção de transpor.  O que significa isto? Você copia dados na horizontal e cola na vertical ou vice-versa.  Este é um recurso muito especial e extremamente útil!    Experimente...",222,"colar especial transpor","OLD"]
[78,"INTERFACE","O zoom da janela pode assumir qualquer tamanho.  No Excel 2007, você tem diversas ferramentas de zoom no canto inferior direito da tela ( botões (+) e (-) e o próprio percentual do zoom, que pode ser acionado com duplo clique. Na guia Exibição da faixa de opções, você também tem acesso ao zoom.",295,"zoom da janela","OLD"]
[79,"SÉRIES NUMERICAS","Para preencher uma coluna ( ou uma linha ) com uma série numérica - por exemplo de 1 a 250 -  digite o 1 e use o comando Inicio > Edição> Preencher > Série.  Fique atento ao selecionar as opções e não se esqueça de indicar o limite  ( no caso 250)...\n",251,"series numericas","OLD"]
[80,"LINHAS E COLUNAS","Inserir  linhas ou colunas  numa planilha é muito simples e muito seguro, pois quando você faz isto, as fórmulas normalmente se ajustam sem problemas.  Use o botão direito do mouse no número da linha ou na letra da coluna e escolha o comando Inserir.",250,"inserir linhas e colunas","OLD"]
[81,"LISTA DE DADOS","Para fazer subtotais temporários em uma lista de dados, classifique a lista pela coluna do critério desejado (ex.: Setor).  Em seguida,execute o comando Dados > Subtotais.  Marque as opções  e você terá os subtotais baseados no critério escolhido.",247,"subtotais automaticos","OLD"]
[82,"LISTA DE DADOS","Para classificar uma lista de dados por uma única coluna, basta clicar em qualquer célula desta coluna e acionar o botão Classificação Crescente \n(AZ) ou decrescente (ZA).  Não é necessário selecionar a lista.",209,"classificar listas 1 coluna","OLD"]
[83,"IMPRESSÃO","Antes de imprimir, acostume-se a visualizar a impressão; as vezes por um detalhe, geram-se páginas desnecessárias.  Faça os ajustes necessários neste modo, usando o botão Office > Imprimir > Visualização de Impressão.  Na barra de opções desta janela, você tem diversos comando para otimizar a impressão.",304,"visualizar impressão","OLD"]
[84,"MACROS","Usando o VBA (Visual Basic for Applications) você pode criar uma série de procedimentos automatizados, conhecidos como macros, num arquivo Excel.",145,"macros e vba","OLD"]
[85,"RECURSOS ESPECIAIS","Para colar apenas alguns elementos de uma célula ( ou intervalo) em outra, use o comando Inicio > Colar > Colar Especial. Ou use o botão direito do mouse...Dê uma olhada nas diversas opções disponíveis.  Uma delas é copiar somente os valores.  Neste caso, nem as fórmulas nem os formatos são copiados mas simplesmente os valores das células de origem.",351,"colar especial : opções","OLD"]
[86,"MACROS","O Excel 2007 tem por padrão desabilitar as macros do arquivo em sua abertura.  Você pode habilitá-las toda vez usando a opção que aparece ao lado do alerta, ou resolver o problema definitivamente via Opções do Excel > Central de Confiabilidade > Configurações de Macros",269,"habilitar macros","OLD"]
[87,"DIGITAÇÃO","Para digitar mais rapidamente, selecione o intervalo de células antes de digitar e vá lançado os dados coluna a coluna, teclando Enter após cada célula.  Ao preencher a ultima célula de uma coluna, o Excel pula automaticamente para a primeira célula da próxima coluna, ganhando tempo...",286,"selecionar intervalo para digitar","OLD"]
[88,"FAIXA DE OPÇÕES","Você pode minimizar a faixa de opções do Excel 2007/2010. Para tanto, clique com o botão direito na propria Faixa de Opções e escolha o comando Minimizar a faixa de opções. Ao ativar qualquer menu, ela reaparece; ao desativar, desaparece novamente",247,"minimizar faixa de opções","OLD"]
[89,"FUNÇÕES","Use as funções Esquerda, Direita ou Ext.Texto para extrair partes de um texto, a esquerda, a direita ou a partir de uma determinada posição no texto.  Basta ativar a função e ler atentamente a caixa de diálogo...",212,"funções de texto = esq/direita","OLD"]
[90,"FUNÇÕES","Você sabia que há um tipo de fórmulas no Excel que não faz cálculo?  É a chamada formula de referência, ou seja, uma fórmula que somente vincula uma célula com a outra, trazendo para a celula o mesmo valor da outra. Basta usar o sinal de igual (=) e a referencia. Por exemplo :  = K29",284,"Uso de formulas de referencia","NEW"]
[91,"MACROS","Um recurso muito pouco usado e muito rico do Excel é o recurso de Gravar Macros. Através dele você pode \"ensinar ao excel uma sequencia de operações que ele vai repetir toda vez que você executar a macro gravada. Para executar uma macro gravada, basta vincular a mesma a um botão desenhado na planiha.",301,"Gravação de Macros","NEW"]
[92,"MACROS","Para executar uma macro você pode vincular a mesma a um botão numa planilha, ou usar o comando Macros> Exibir e ao localizar a macro desejada, acionar o botão Executar. Existem formas automatizadas de executar macros também. Por exemplo, você pode deixar uma macro vinculada a abertura ou salvamento do arquivo, ou a um duplo clique em algum lugar...",350,"Execução de Macros","NEW"]
[93,"MACROS","Para ver e editar o código de uma macro, você utiliza a janela do VBA: Visual Basic for Applications. Como chegar la? Pelo comando Macros> Exibir > Editar ou simplesmente por ALT+F11. Obviamente que para editar uma macro você tem de conhecer um mínimo das regras da linguagem VBA, para não deteriorar o código gerado pelo Excel durante a gravação da macro",355,"Edição simplificada em VBA","NEW"]
[94,"MACROS","Há 2 maneiras de colocar botões para executar macros. Uma delas é pela guia Desenvolvedor>Inserir>Controles de Formularios, usando o botão de comando. Outra, mais simples e que gera  um botão mais bonito, é usar mesmo o velho recurso de Inserir>Formas e escolher um botão bem bacana para vincular com a macro. Para tanto, usar o botão direito no botão desenhado e formatadp e atribuir a macro.",393,"Criação de botões para macros","NEW"]
[95,"MACROS","Há muitas macros de utilidade geral. Entre elas eu citaria as macros de importação de textos, que são fáceis de gravar e de reproduzir. Também macros para limpar campos de formulários a serem digitados. Outras mais sofisticadas conseguem por exempo, ler um diretório do Windows e listar no Excel. Que tal saber mais a respeito??",328,"Macros de utilidade geral","NEW"]
[96,"LISTA DE DADOS","Para obter boas listas de dados diretamente do Excel, uma boa ideia é fazer formulários com validação de dados  e que vão empilhando os dados numa tabela. Isto pode ser feito por macros gravadas de forma bem simples. Basta gravar uma macro que copia e cola os dados do formulário no final da tabela de dados.",308,"Uso de formulários","NEW"]
[97,"LISTA DE DADOS","Um recurso muito utilizado por todos em listas de dados é o Filtro, ou Auto-filtro, que permite definir criterios de pesquisa e mostrar somente alguns itens de uma lista mais longa. Para ativar e desativar o filtro, você deve usar o menu Dados>Filtro. Ou que tal um atalho:  CTRL + SHIFT + L...  Show, não é mesmo??",{"$f":"LEN(C98)","v":315},"Uso de AutoFiltro","NEW"]
[98,"LISTA DE DADOS","Assim como o recurso do filtro é muito utilizado, o recurso do Filtro Avançado é quase que totalmente desconhecido. Tem 2 vantagens ao meu ver: 1) posso definiir todos os critérios de uma só vez; 2) ele gera uma lista separada dos itens desejados. A desvantagem?  Você tem que criar uma \"area de criterios\" que nada mais é do que uma cópia do cabeçalho da sua lista... Vale a pena saber mais...",394,"Uso de Filtro Avançado","NEW"]
[99,"LISTA DE DADOS","Para classificar uma lista de dados por mais de uma coluna, temos 2 opções: uma é usar o comando Dados>Classificar e indicar na janela os níveis de classificação: por exemplo: Nivel 1= Idade e Nivel 2=Sexo. Outra maneira seria você classificar pelas colunas, de forma inversa, ou seja, primeiro Sexo e depois Idade.... Experimente",330,"Classificando listas por mais de 1 criterio","NEW"]
[100,"SEGURANÇA","Se alguém deve digitar uma data em uma célula, você pode verificar se foi realmente uma data o que foi digitado. Para tanto, selecionar a célula e usar o comando Dados>Validação de Dados. Na janela, escolher Data! Você pode até indicar um intervalo aceitável das datas. Por exemplo, datas deste ano....",302,"Validação de datas","NEW"]
[101,"SEGURANÇA","Se alguém deve digitar um valor numérico em  uma célula, você pode verificar se foi realmente um valor  o que foi digitado. Para tanto, selecionar a célula e usar o comando Dados>Validação de Dados. Na janela, escolher Numero Inteiro ou Decimal conforme o caso. Você pode até indicar limites para estes numeros!  Por exemplo, de 1000 a 9999.",341,"Validação de dados numéricos","NEW"]
[102,"SEGURANÇA","Você pode verificar o texto digitado contra uma lista de padrões. Por exemplo,  uma lista de bairros, ou nomes de produtos etc.... Use o comando Dados>Validação de Dados. Na janela, escolher Lista e indicar o nome da lista de  padrões. Duas dicas: a lista deve ser pequena e só pode ter uma coluna... e não se esqueça de colocar o sinal de igual ( =nome da lista) na janela de validação, OK??",392,"Validação de dados por listas","NEW"]
[103,"SEGURANÇA","Você viu a dica sobre validação de textos a partir de uma lista de padrões?? Pois bem, considere sempre a ideia de ter uma planilha somente com as tabelas de validação. Para faciltar o uso destas tabelas, use o recurso de dar nomes para as mesmas. Não sabe como?? Veja nossas dicas sobre como nomear células e intervalos...",323,"Usando lista em outra planilha","NEW"]
[104,"FUNÇÕES","Você quer agrupar dois textos que estão numa determinada coluna em uma outra coluna??  Muito Simples...  Use a função de texto CONCATENAR  e aponte para os dois ou mais textos que você quer agrupar....  ",203,"Concatenar ( juntar )  textos","NEW"]
[105,"FUNÇÕES","Que tal verificar conosco se já saiu uma nova versão do EXCEL EM DICAS?? \nEmail para :  excelexpert@excelexpert.com.br",118,"Funções SE aninhadas","NEW"]
[106,"FUNÇÕES","Que tal verificar conosco se já saiu uma nova versão do EXCEL EM DICAS?? \nEmail para :  excelexpert@excelexpert.com.br",118,"Funções PROCV","NEW"]
[107,"INTERFACE","Desde qiue o Excel sofreu uma enorme transformação em 2007, já foram lançadas mais 3 versões : 2010, 2013 e 2016. Provavelmente deve vir alguma nova versão em 2018, 2020 e assim por diante.. Cada versão sempre traz melhorias e novidades interessantes. Tem que ficar ligado na parada!!!   ;))",291,"Versões do Excel","NEW"]
[108,"ATALHOS","A tecla CTRL ouo tecla Control, tem uma função muito importante: ao combinar a mesma com qualquer outra tecla, você está usando um atalho pelo teclado. Por exemplo você sabia que pode usar CTRL+B  para salvar seu arquivo de Excel??",231,"Tecla control e atalhos (ctrl+d, ctrl+; , ctrl+enter)","NEW"]
[109,"ATALHOS","Que tal copiar uma célula ou um bloco de células sem usar a famosa dupla CTRL+C  e CTRL+V?? Sabe como? Selecione a área a ser copiada, mova o cursor para uma das bordas da mesma e arraste para outro local, pressionando a tecla CTRL durante o movimento.... Experimente que você vai adotar esta técnica!!!",303,"Copiar e mover por arraste","NEW"]
[110,"ATALHOS","Que tal verificar conosco se já saiu uma nova versão do EXCEL EM DICAS?? \nEmail para :  excelexpert@excelexpert.com.br",118,"Tecla control e atalhos (ctrl+*, ctrl+t, ctrl+setas, ctrl+b)","NEW"]
[111,"FAIXA DE OPÇÕES","Que tal verificar conosco se já saiu uma nova versão do EXCEL EM DICAS?? \nEmail para :  excelexpert@excelexpert.com.br",118,"Barra Acesso Rapido - colocando e tirando botões","NEW"]
[112,"INTERFACE","Que tal verificar conosco se já saiu uma nova versão do EXCEL EM DICAS?? \nEmail para :  excelexpert@excelexpert.com.br",118,"Formatos do cursor; botão direito do mouse","NEW"]
[113,"FUNDAMENTOS","Que tal verificar conosco se já saiu uma nova versão do EXCEL EM DICAS?? \nEmail para :  excelexpert@excelexpert.com.br",118,"Tour do Excel - menu Novo Arquivo 2013","NEW"]
[114,"ATALHOS","Que tal verificar conosco se já saiu uma nova versão do EXCEL EM DICAS?? \nEmail para :  excelexpert@excelexpert.com.br",118,"Teclas de Função mais usadas = F1,F2,F4,F5, F7 e F9","NEW"]
[115,"RECURSOS ESPECIAIS","Que tal verificar conosco se já saiu uma nova versão do EXCEL EM DICAS?? \nEmail para :  excelexpert@excelexpert.com.br",118,"Usando nomes de celulas e tabelas em fórmulas","NEW"]
[116,"INTERFACE","Que tal verificar conosco se já saiu uma nova versão do EXCEL EM DICAS?? \nEmail para :  excelexpert@excelexpert.com.br",118,"Configurando o Excel = Arquivo/Opções","NEW"]
[117,"MACROS","Que tal verificar conosco se já saiu uma nova versão do EXCEL EM DICAS?? \nEmail para :  excelexpert@excelexpert.com.br",118,"O que são macros?? Como funcionam?? Posso aprender?","NEW"]
[118,"LISTA DE DADOS","Uma lista de dados é um recurso extremamente importante; trata-se de uma simples tabela que segue 4 regas básicas: não tem linhas vazias intercaladas, não tem colunas vazias intercaladas, tem somente uma linha de títulos e definitivamente não contém células mescladas.O que eu ganho com isto?? Um Banco de Dados... pense nisto",326,"Lista de dados: conceito ","NEW"]
[119,"FAIXA DE OPÇÕES","Que tal verificar conosco se já saiu uma nova versão do EXCEL EM DICAS?? \nEmail para :  excelexpert@excelexpert.com.br",118,"Usando a Faixa de opções e Barra de Acesso Rápido","NEW"]
[120,"FUNÇÕES","Para localizar funções nas versões 2007 a 2016, o melhor camilho é a guia Fórmulas na Faixa de Opções. Temos lá um conjunto de \"livros\" representando as categorias, ou seja, Matemática, Estatística, Lógica, Financeira, Texto, etc., etc., etc...",244,"Localizando e usando funções no Excel (2007 a 2016)","NEW"]
[121,"RECURSOS ESPECIAIS","Quer digitar rápidamente a data de hoje em uma célula?? Então NÃO digite!! Use o atalho <CTRL + ponto-e-virgula> ! É isto mesmo... E para o horário de agora, use o atalho <CTRL + dois pontos>!! Simples assim...",210,"Digitando data de hoje e agora","NEW"]
[122,"RECURSOS ESPECIAIS","Que tal verificar conosco se já saiu uma nova versão do EXCEL EM DICAS?? \nEmail para :  excelexpert@excelexpert.com.br",118,"Clonagem de planilha: mover ou copiar ","NEW"]
[123,"MACROS","Não quer que sua macro deixe as telas naquele pisca-pisca sem fim?? Digite  o seguinte comando logo abaixo do comando Sub, que tem o nome da macro: Application.ScreenUpdating = False. Repare que Application tem 2 vezes a letra p, OK??",234,"Dica de macro: Screen Updating","NEW"]
[124,"MACROS","Que tal verificar conosco se já saiu uma nova versão do EXCEL EM DICAS?? \nEmail para :  excelexpert@excelexpert.com.br",118,"Dica de macro: Uso de nomes para ranges","NEW"]
[125,"FÓRMULAS","Que tal verificar conosco se já saiu uma nova versão do EXCEL EM DICAS?? \nEmail para :  excelexpert@excelexpert.com.br",118,"auditoria de formulas: precedentes","NEW"]
[126,"FUNÇÕES","Que tal verificar conosco se já saiu uma nova versão do EXCEL EM DICAS?? \nEmail para :  excelexpert@excelexpert.com.br",118,"Procv normal e Procv Aproximado: diferença?","NEW"]
[127,"RECURSOS ESPECIAIS","Que tal verificar conosco se já saiu uma nova versão do EXCEL EM DICAS?? \nEmail para :  excelexpert@excelexpert.com.br",118,"Limpar linhas vazias intercaladas na lista","NEW"]
[128,"RECURSOS ESPECIAIS","Dois recursos muito uteis no Excel são os recursos de Localizar e Substituir. O primeiro ( com o atalho CTRL+L) localiza um numero ou um texto numa área de sua planilha. O segundo,  mais poderoso, ( com o atalho CTRL+U) substitui o que foi localizado por outro dado que você escolhe....",286,"Localizar textos; substituir textos (ctrl+L, ctrl+U)","NEW"]
[129,"INTERFACE","Você já notou que quase ningém tem o hábito de ler as mensagens que o Excel ( ou outro software) apresenta em determinadas situações?? Uma dica: crie este hábito, pois além de aprender muito, você pode evitar muita confusão hehehehe...",{"$f":"LEN(C130)","v":235},"Ler as mensagens : um hábito a ser criado","NEW"]
[130,"FÓRMULAS","Que tal verificar conosco se já saiu uma nova versão do EXCEL EM DICAS?? \nEmail para :  excelexpert@excelexpert.com.br",118,"Mensagens de erros em fórmulas: DIV/0; VALOR; N/D","NEW"]
[131,"FUNDAMENTOS","Que tal verificar conosco se já saiu uma nova versão do EXCEL EM DICAS?? \nEmail para :  excelexpert@excelexpert.com.br",118,"copiar e colar por arraste","NEW"]